[Event "1st Anfield Cup 2022"]
[Site "Kyiv"]
[Date "2022.09.25"]
[Round "9.3"]
[White "Andreev, Eduard"]
[Black "Grinev, Valeriy"]
[Result "1-0"]
[ECO "C10"]
[WhiteElo "2413"]
[BlackElo "2425"]
[Annotator "TA"]
[PlyCount "81"]
[EventDate "2022.09.20"]
[EventType "swiss"]
[EventCountry "UKR"]
[SourceTitle "playchess.com"]
[Source "ChessBase"]
[SourceQuality "1"]
[TimeControl "900+10"]

{[%evp 18,81,50,50,50,55,48,41,32,46,81,0,88,82,283,289,281,267,362,189,241,169,175,169,221,241,231,228,235,235,255,247,348,362,530,495,698,679,781,720,712,690,1003,1038,983,900,1501,1397,12819,2800,12820,9381,5010,2991,6403,2989,12839,12839,12840,12840,12841,12842,12843,12843,12844,12844]} 1. e4 {[%emt 0:00:02]} e6 {[%emt 0:00:04]} 2. d4 {[%emt 0:00:02]} d5 {[%emt 0:00:05]} 3. Nd2 {[%emt 0:00:05]} dxe4 {[%emt 0:00:05]} 4. Nxe4 {[%emt 0:00:01]} Nd7 {[%emt 0:00:06]} 5. Nf3 {[%emt 0:00:06]} Ngf6 {[%emt 0:00:03]} 6. Bd3 {[%emt 0:00:03]} Nxe4 {[%emt 0:00:59]} 7. Bxe4 {[%emt 0:00:05]} Nf6 {[%emt 0:00:42]} 8. Bg5 {[%emt 0:00:13]} Be7 {[%emt 0:00:25]} 9. Bxf6 {[%emt 0:00:07]} Bxf6 {[%emt 0:00:04]} 10. Qd3 {[%emt 0:00:04]} Qd6 {[%emt 0:01:12] C10: French with 3 Nc3: Unusual Black 3rd moves and 3...dxe4.} 11. O-O-O {[%emt 0:00:53]} Bd7 {[%emt 0:01:17]} 12. Bxb7 {[%emt 0:02:22]} Rb8 {[%emt 0:00:03] White is slightly better.} 13. Be4 {[%emt 0:00:02] [#]} (13. Qb3 $2 O-O 14. Nd2 Bc6 $19) 13... Bc6 $146 {[%emt 0:00:19]} ({Predecessor:} 13... c5 14. Kb1 Ke7 15. c3 Bb5 16. Qd2 Rhd8 17. Qe3 Bc4 18. Ne5 cxd4 19. cxd4 Qa6 {½-½ (48) Rublevsky,S (2662)-Lobron,E (2550) Frankfurt 2000}) 14. Ne5 {[%emt 0:02:12]} ({White should play} 14. Bxc6+ $16 Qxc6 15. g4) 14... Bxe4 {[%emt 0:00:53]} (14... Bg5+ $1 $11 {keeps the balance.} 15. Kb1 Bxe4 16. Qxe4 Rxb2+ 17. Kxb2 Qb4+ 18. Ka1 Qc3+ 19. Kb1 Qb4+ 20. Ka1 Qc3+ 21. Kb1 Qb4+ 22. Ka1) 15. Qxe4 $16 {[%emt 0:00:01]} Qd5 $2 {[%emt 0:00:07] This move loses the game for Black.} (15... c5 $16 {is a better defense.}) 16. Qxd5 $18 {[%emt 0:00:11]} exd5 {[%emt 0:00:02]} 17. Rhe1 {[%emt 0:00:27]} O-O {[%emt 0:00:24]} 18. f4 {[%emt 0:00:23]} (18. Nd7 $142) 18... Rfe8 {[%emt 0:00:31]} (18... Bxe5 $142 19. Rxe5 (19. dxe5 c6 $16) 19... c6) 19. c3 {[%emt 0:00:36]} Bxe5 {[%emt 0:00:26]} 20. Rxe5 {[%mdl 4096] Endgame KRR-KRR} ({Much less strong is} 20. fxe5 Re6 21. Kc2 g6) 20... c6 {[%emt 0:00:30]} (20... Rbd8 $142 21. Rde1 Kf8) 21. Rde1 {[%emt 0:01:22]} Rxe5 {[%emt 0:01:44]} 22. Rxe5 {[%emt 0:00:04] KR-KR} ({Don't play} 22. fxe5 $6 Kf8 23. b4 Ke7 $16) 22... Kf8 {[%emt 0:01:10]} 23. b4 {[%emt 0:00:10]} a5 {[%emt 0:01:11] [#]} 24. a3 {[%emt 0:00:11]} (24. bxa5 Ra8 25. c4 Rxa5 $16) 24... axb4 {[%emt 0:01:00]} (24... g6 $142 25. Kc2 (25. bxa5 Rb3 $16) 25... Kg7 26. bxa5 Ra8) 25. cxb4 {[%emt 0:00:03]} ({Not} 25. axb4 Re8 26. g4 Re6 $16) 25... g6 {[%emt 0:00:04]} (25... f6 $142) 26. Kc2 {[%emt 0:00:08] White is clearly winning.} Rb6 {[%emt 0:00:12]} (26... h6 $142 27. Kb3 h5) 27. Kb3 {[%emt 0:00:07]} f6 {[%emt 0:00:02]} 28. Re1 {[%emt 0:00:15]} Kf7 {[%emt 0:00:04]} 29. a4 {[%emt 0:00:03]} Rb8 {[%emt 0:00:09]} 30. a5 {[%emt 0:00:12]} Ra8 {[%emt 0:00:07]} 31. Ka4 {[%emt 0:00:09]} h5 {[%emt 0:00:08]} 32. Rc1 {[%emt 0:00:18]} Ra6 {[%emt 0:00:05]} 33. b5 {[%emt 0:00:11]} cxb5+ {[%emt 0:00:02]} 34. Kxb5 {[%emt 0:00:02]} Ra8 {[%emt 0:00:03]} 35. a6 {[%emt 0:00:20] [#] And now Kb6 would win.} Rb8+ {[%emt 0:00:02]} 36. Ka5 {[%emt 0:00:04]} Rb2 {[%emt 0:00:03]} 37. Ra1 {[%emt 0:00:04] a7 would kill now.} Rb8 {[%emt 0:00:07]} 38. a7 {[%emt 0:00:03]} Re8 {[%emt 0:00:03]} 39. Kb6 {[%emt 0:00:11]} Re6+ {[%emt 0:00:02]} 40. Kc5 {[%emt 0:00:02]} Re8 {[%emt 0:00:02]} 41. a8=Q {[%emt 0:00:05] Weighted Error Value: White=0.23 (precise) /Black=0.73} 1-0

[Event "1st Anfield Cup 2022"]
[Site "Kyiv"]
[Date "2022.09.25"]
[Round "9.4"]
[White "Samunenkov, Ihor"]
[Black "Grebeniuk, Semen"]
[Result "0-1"]
[ECO "A80"]
[WhiteElo "2469"]
[BlackElo "2315"]
[Annotator "TA"]
[PlyCount "128"]
[EventDate "2022.09.20"]
[EventType "swiss"]
[EventCountry "UKR"]
[SourceTitle "playchess.com"]
[Source "ChessBase"]
[SourceQuality "1"]
[TimeControl "900+10"]

{[%evp 10,128,22,5,57,44,41,29,29,25,20,17,27,19,18,8,12,0,0,0,0,0,37,7,18,20,32,38,29,-51,66,46,65,22,57,58,45,43,77,71,72,0,10,27,63,70,69,68,75,64,56,28,56,25,38,0,72,17,17,3,22,14,61,20,32,0,0,0,0,-8,0,-6,0,-25,-34,-19,-11,-9,-8,-50,0,-89,-114,-187,-75,-123,-8,-20,-23,-143,-16,-131,0,-266,-257,-229,-200,-158,-10,-548,-516,-815,-796,-770,-734,-1198,-1176,-1085,-1000,-1195,-1339,-12834,-12835,-12832,-8589,-12845,-12846,-12846,-12847,-12847,-12847]} 1. d4 {[%emt 0:00:02]} f5 {[%emt 0:00:01]} 2. Nc3 {[%emt 0:00:02]} Nf6 {[%emt 0:00:07]} 3. Bg5 {[%emt 0:00:03]} d5 {[%emt 0:00:02]} 4. Bxf6 {[%emt 0:00:03]} exf6 {[%emt 0:00:01]} 5. e3 {[%emt 0:00:01]} Be6 {[%emt 0:00:10]} 6. Bd3 {[%emt 0:00:04]} Na6 {[%emt 0:01:47] A80: Dutch Defence: Unusual White second moves.} (6... Nc6 $11) 7. a3 {[%emt 0:00:44]} (7. Nge2 {keeps more tension.} Nb4 8. Nf4 Qd7 9. Bb5) 7... c6 {[%emt 0:00:19] [#]} 8. Nce2 $146 {[%emt 0:00:18]} ({Predecessor:} 8. Qf3 Qd7 9. h3 Nc7 10. Nge2 g6 11. Nf4 Bd6 12. O-O-O O-O-O 13. Rdg1 Kb8 14. g4 fxg4 15. hxg4 {0-1 (35) Semenova,I (2128)-Lukovnikov,A (2355) Voronezh 2005}) 8... Bd6 {[%emt 0:00:13] White has an edge.} 9. Nf3 {[%emt 0:00:29]} Nc7 {[%emt 0:00:06]} 10. c3 {[%emt 0:01:34]} Qd7 {[%emt 0:00:52]} 11. Qc2 {[%emt 0:00:34]} g6 {[%emt 0:00:19]} 12. b3 {[%emt 0:00:41]} Qe7 {[%emt 0:00:41]} 13. Qc1 {[%emt 0:02:34]} O-O {[%emt 0:00:15]} 14. O-O {[%emt 0:00:18]} b6 {[%emt 0:01:16]} 15. c4 {[%emt 0:00:50]} Rac8 {[%emt 0:00:53]} 16. Qb2 {[%emt 0:02:06]} (16. c5 $5 bxc5 17. dxc5 Bxc5 18. b4 $11) 16... dxc4 {[%emt 0:00:28]} 17. bxc4 {[%emt 0:00:11]} c5 {[%emt 0:00:02]} 18. d5 {[%emt 0:00:33]} Bd7 {[%emt 0:00:02]} 19. Qc2 {[%emt 0:00:31] [#]} (19. Rfe1 $11) 19... h5 {[%emt 0:04:28]} (19... Nxd5 $1 $15 20. cxd5 c4) 20. Rae1 {[%emt 0:00:59]} Qh7 {[%emt 0:00:18][%cal Oc7d5]} 21. h4 {[%emt 0:00:45]} (21. Nc3 $5 {[%cal Re3e4]}) 21... Rce8 {[%emt 0:00:30]} 22. Nc3 {[%emt 0:00:35]} Qh6 {[%emt 0:00:55]} 23. e4 {[%emt 0:01:05]} Qf4 {[%emt 0:03:19]} 24. exf5 {[%emt 0:00:38]} Bxf5 {[%emt 0:00:35][%cal Of4c4]} 25. Bxf5 {[%emt 0:00:59]} (25. Ne4 $1 $16 {[%cal Re4d6]} Bxe4 26. Bxe4) 25... gxf5 $11 {[%emt 0:00:01]} 26. Qd3 {[%emt 0:00:15]} Kf7 {[%emt 0:00:31]} 27. g3 {[%emt 0:01:14]} Qg4 {[%emt 0:00:08][%cal Od6g3] Strongly threatening ...Bxg3!} 28. Nh2 {[%emt 0:00:32]} Qg6 {[%emt 0:00:17]} 29. Kh1 {[%emt 0:00:23]} Rg8 {[%emt 0:00:03]} 30. Rg1 {[%emt 0:00:16]} Re5 {[%emt 0:00:19]} 31. Ne2 {[%emt 0:00:40]} ({Much worse is} 31. Nf3 Rxe1 32. Rxe1 Qg4 $11) 31... Re4 {[%emt 0:00:10] Inhibits Nf4.} 32. Nc3 {[%emt 0:00:11]} Re5 {[%emt 0:00:07]} 33. Nf3 {[%emt 0:00:07]} (33. a4 $16) 33... Ree8 {[%emt 0:00:07]} 34. Rxe8 {[%emt 0:00:05]} Rxe8 {[%emt 0:00:02]} 35. Nh2 {[%emt 0:00:14][%cal Bf3h2,Bh2f1,Bf1e3][%mdl 32]} Re5 {[%emt 0:00:11]} (35... f4 $11 36. Qxg6+ Kxg6) 36. Qf3 {[%emt 0:00:11]} Re8 {[%emt 0:00:23]} 37. Nf1 {[%emt 0:00:07] Black must now prevent Ne3.} Qg4 {[%emt 0:00:08]} 38. Qxg4 {[%emt 0:00:24]} fxg4 {[%emt 0:00:01]} 39. Ne3 {[%emt 0:00:02]} Kg6 {[%emt 0:00:06]} 40. a4 {[%emt 0:00:13]} f5 {[%emt 0:00:03]} 41. Nb5 {[%emt 0:00:12]} Nxb5 {[%emt 0:00:05]} 42. axb5 {[%emt 0:00:08][%mdl 4096] Endgame KRB-KRN} f4 {[%emt 0:00:05]} 43. gxf4 {[%emt 0:00:05]} Bxf4 {[%emt 0:00:01]} 44. Ng2 {[%emt 0:00:19]} Re4 {[%emt 0:00:32]} (44... Bb8 $15) 45. Rd1 {[%emt 0:00:05]} (45. Nxf4+ $11 Rxf4 46. Rc1) 45... Bd6 {[%emt 0:00:20]} ({But not} 45... Rxc4 46. d6 Be5 47. d7 $16) 46. Ne3 {[%emt 0:00:06]} (46. Rc1 $17) 46... Kf6 {[%emt 0:00:14]} (46... Be7 $19 {has better winning chances.} 47. d6 Bxh4) 47. Kg2 {[%emt 0:00:13] [#]} (47. Rd3 $142) 47... Ke5 {[%emt 0:00:10] Black is more active.} (47... g3 $1 $17 {White should prevent ...gxf2.} 48. Ra1 gxf2 49. Kxf2 Bb8) 48. Re1 {[%emt 0:00:08]} Be7 {[%emt 0:00:34]} 49. Ra1 {[%emt 0:00:15]} (49. Kg3 $11 {keeps the balance.}) 49... Bxh4 {[%emt 0:00:05]} ({Better is} 49... Rf4 $17 50. Rxa7 Bxh4) 50. Rxa7 {[%emt 0:00:11]} (50. Rh1 $11 Bg5 51. Rxh5) 50... Bg5 {[%emt 0:00:04]} (50... Rf4 $17 51. Rh7 Rxf2+ 52. Kg1 Kd4 53. Rxh5 Kxe3 54. Rxh4 Rf4) 51. d6 $2 {[%emt 0:00:12][%mdl 8192]} (51. Ra8 $11 {and White stays safe.}) 51... Kxd6 $19 {[%emt 0:00:29]} 52. Nd5 {[%emt 0:00:07]} Rxc4 {[%emt 0:00:07]} 53. Nxb6 {[%emt 0:00:02] [#]} Rb4 {[%emt 0:00:05]} ({Black should try} 53... Rd4 $1 $17 {And now ...h4 would win.} 54. Nc8+ Ke6 55. Ra6+ Kd7 56. Nb6+ Ke7 57. Nc8+ Kd7 58. Nb6+ Ke8 59. Ra8+ Kf7 60. Ra7+ Ke6) 54. Nc8+ $2 {[%emt 0:00:11][%mdl 8192] This costs White the game.} (54. Rd7+ $11 {and White is okay.} Ke6 55. Rd5) 54... Ke5 {[%emt 0:00:34] Black is clearly winning.} 55. b6 {[%emt 0:00:15]} (55. Rg7 $142 Kf6 56. Rd7) 55... h4 {[%emt 0:00:07][%cal Bh5h4,Bh4h3][%mdl 32]} 56. Ra1 {[%emt 0:00:15]} h3+ {[%emt 0:00:09]} 57. Kg1 {[%emt 0:00:01]} Bf4 {[%emt 0:00:13]} 58. Re1+ {[%emt 0:00:19]} Kd4 {[%emt 0:00:07] Threatens to win with ...c4.} 59. Rd1+ {[%emt 0:00:06]} Ke4 {[%emt 0:00:03]} 60. Nd6+ {[%emt 0:00:12]} Bxd6 {[%emt 0:00:10]} 61. Rxd6 {[%emt 0:00:01]} c4 {[%emt 0:00:08]} 62. Kf1 {[%emt 0:00:20]} Rb1+ {[%emt 0:00:10]} 63. Ke2 {[%emt 0:00:01]} h2 {[%emt 0:00:06]} 64. Re6+ {[%emt 0:00:04]} Kd5 {[%emt 0:00:06] Weighted Error Value: White=0.72/Black=0.26 (precise)} 0-1

[Event "1st Anfield Cup 2022"]
[Site "Kyiv"]
[Date "2022.09.25"]
[Round "9.5"]
[White "Pavlov, Sergey"]
[Black "Skliarov, Viktor"]
[Result "1-0"]
[ECO "A46"]
[WhiteElo "2333"]
[BlackElo "2384"]
[Annotator "TA"]
[PlyCount "141"]
[EventDate "2022.09.20"]
[EventType "swiss"]
[EventCountry "UKR"]
[SourceTitle "playchess.com"]
[Source "ChessBase"]
[SourceQuality "1"]
[TimeControl "900+10"]

{[%evp 19,141,77,77,87,101,92,88,84,94,83,85,96,93,76,73,83,118,122,123,83,85,83,81,73,79,70,137,138,210,211,212,156,162,111,98,20,180,104,124,64,95,102,102,104,98,31,103,73,151,72,95,95,95,95,772,756,699,663,677,622,692,431,528,435,463,441,497,493,519,501,2024,1828,3825,1618,12832,12831,12833,12834,12832,1199,902,1020,1073,1073,989,798,914,650,558,497,527,535,2586,1697,1584,1150,8670,8516,7218,7218,3324,798,2586,2660,1043,964,4522,939,12830,12831,12831,12831,12831,12831,12822,12813,11752,9576,11530,12713,1582,1176,808,642]} 1. d4 {[%emt 0:00:04]} Nf6 {[%emt 0:00:05]} 2. Nf3 {[%emt 0:00:02]} e6 {[%emt 0:00:18]} 3. e3 {[%emt 0:00:05]} b6 {[%emt 0:00:10]} 4. Bd3 {[%emt 0:00:02]} Bb7 {[%emt 0:00:02]} 5. O-O {[%emt 0:00:02]} Be7 {[%emt 0:00:09]} 6. c4 {[%emt 0:00:08]} O-O {[%emt 0:00:09]} 7. Nc3 {[%emt 0:00:21]} c5 {[%emt 0:00:34]} 8. d5 {[%emt 0:00:09]} exd5 {[%emt 0:00:16]} 9. cxd5 {[%emt 0:00:10]} d6 {[%emt 0:00:01]} 10. e4 a6 {[%emt 0:00:59]} 11. a4 {[%emt 0:00:38] E14: Queen's Indian: Classical Variation (4 e3).} Qc7 {[%emt 0:00:35]} 12. Re1 {[%emt 0:01:41]} Nbd7 {[%emt 0:00:14]} 13. h3 {[%emt 0:01:23] White is better.} Ne5 {[%emt 0:01:12]} 14. Nxe5 {[%emt 0:01:43]} dxe5 {[%emt 0:00:02]} 15. b3 Ne8 {[#]} 16. Be3 $146 {[%emt 0:01:10]} ({Predecessor:} 16. Bb2 Nd6 17. Nb1 f6 18. Na3 Bc8 19. Qd2 Rb8 20. Rac1 Qa7 21. Qe3 Bd7 22. Kh1 {0-1 (47) Cori Tello,D (2434)-Ortiz Suarez,I (2609) Barcelona 2013}) 16... Nd6 {[%emt 0:00:49]} 17. Rc1 {[%emt 0:00:08]} (17. Qg4 {keeps more tension.} a5 18. Rac1 Bf6 19. f4) 17... Rfc8 {[%emt 0:01:22]} 18. Nb1 {[%emt 0:00:53]} Qd8 {[%emt 0:02:00]} 19. Na3 {[%emt 0:03:19]} Bg5 {[%emt 0:00:26]} 20. Bxg5 {[%emt 0:01:01]} Qxg5 {[%emt 0:00:01]} 21. Nc4 {[%emt 0:00:08]} Nxc4 {[%emt 0:01:06]} 22. bxc4 {[%emt 0:00:11]} Rd8 {[%emt 0:00:25]} (22... Rcb8 $1 $14) 23. Rb1 $16 {[%emt 0:00:48]} Rd6 {[%emt 0:00:16]} (23... Bc8 $16 {was necessary.}) 24. a5 $1 $18 {[%emt 0:00:47]} Bc8 {[%emt 0:01:16]} 25. axb6 {[%emt 0:03:13]} Bxh3 {[%emt 0:01:15][%csl Gh3][%cal Rg5g2]} 26. Qf3 {[%emt 0:00:01]} ({White should play} 26. Bf1 $18 {Hoping for Qd3.} Rb8 27. b7) 26... Rh6 $16 {[%emt 0:00:55]} 27. Qg3 {[%emt 0:00:55]} ({Better is} 27. Be2 $16) 27... Qe7 $2 {[%emt 0:02:33]} (27... Qxg3 $1 $11 {and Black is okay.} 28. fxg3 Bd7) 28. Bf1 {[%emt 0:00:35]} ({Not} 28. gxh3 Rg6 $15) (28. f4 $18) 28... Rb8 {[%emt 0:01:13]} 29. f4 {[%emt 0:00:09]} ({Worse is} 29. gxh3 Rg6 $15) (29. b7 $16) 29... Bc8 {[%emt 0:00:52]} 30. fxe5 {[%emt 0:00:06][%cal Oe5e6] Black must now prevent e6!} (30. b7 {feels hotter.} Rxb7 31. Rxb7 Qxb7 32. fxe5 Rb6 33. Qg5) 30... Rhxb6 {[%emt 0:00:01]} 31. Rxb6 {[%emt 0:00:11]} Rxb6 {[%emt 0:00:00]} 32. Qf4 {[%emt 0:00:13]} (32. Be2 $16) 32... h6 {[%emt 0:00:18]} (32... a5 $14) 33. Ra1 {[%emt 0:00:05][%cal Oe5e6]} Rg6 {[%emt 0:00:27]} (33... Qc7 $142) 34. Be2 {[%emt 0:00:01]} (34. Rb1 $142 $1) 34... Rg5 {[%emt 0:00:23]} 35. e6 {[%emt 0:00:09]} fxe6 {[%emt 0:00:20] [#]} 36. Qb8 $1 {[%emt 0:00:01][%csl LRa6,LRc8] White is more active.} Qf6 $2 {[%emt 0:00:13][%mdl 8192]} 37. Qxc8+ $18 {White is clearly winning.} Kh7 38. Rf1 {[%emt 0:00:20]} Qd4+ {[%emt 0:00:04]} 39. Rf2 {[%emt 0:00:07]} Rg6 {[%emt 0:00:23]} 40. Qc7 {[%emt 0:00:26]} e5 {[%emt 0:00:12]} 41. Qa5 {[%emt 0:00:19]} Rf6 {[%emt 0:00:11]} 42. Qe1 {[%emt 0:00:11]} a5 {[%emt 0:00:00]} 43. Bf3 {[%emt 0:00:07]} a4 {[%emt 0:00:01]} 44. Qd2 {[%emt 0:00:07]} Qxc4 {[%emt 0:00:27]} (44... Qxd2 $142 45. Rxd2 a3) 45. d6 {[%emt 0:00:05]} Qd4 {[%emt 0:00:06]} 46. d7 {[%emt 0:00:20]} (46. Qxd4 $142 cxd4 47. d7) 46... Rd6 {[%emt 0:00:06]} 47. Qxd4 cxd4 {[%emt 0:00:16][%mdl 4096] Endgame [#] KRB-KR} 48. Bg4 $1 {[%emt 0:00:15]} a3 {[%emt 0:00:09]} 49. Rf8 {[%emt 0:00:19]} (49. Bf5+ $142 Kg8 50. Kf1) 49... a2 {[%emt 0:00:14]} 50. Ra8 {[%emt 0:00:01]} h5 {[%emt 0:00:12]} 51. Bxh5 {[%emt 0:00:16]} Rxd7 {[%emt 0:00:02]} 52. Rxa2 {[%emt 0:00:02]} Kh6 {[%emt 0:00:09]} 53. Be2 {[%emt 0:00:21]} Kg5 {[%emt 0:00:06]} 54. Kf2 {[%emt 0:00:02]} Rf7+ {[%emt 0:00:05]} 55. Bf3 {[%emt 0:00:04]} Rf6 {[%emt 0:00:06]} 56. Ra5 {[%emt 0:00:04]} Re6 {[%emt 0:00:02]} 57. g3 {[%emt 0:00:11]} Kf6 {[%emt 0:00:06]} 58. Be2 {[%emt 0:00:01]} Re7 {[%emt 0:00:10]} 59. Ra6+ Kg5 60. Bd3 {[%emt 0:00:42]} (60. Rc6 $142 Rf7+ 61. Kg2) 60... Rf7+ {[%emt 0:00:13]} 61. Kg2 {[%emt 0:00:01] And now Re6 would win.} Re7 {[%emt 0:00:03] Against Re6} 62. Rc6 {[%emt 0:00:05]} Re8 {[%emt 0:00:14]} 63. Bc4 {[%emt 0:00:27] Strongly threatening Re6.} Ra8 64. Re6 Ra5 {[%emt 0:00:53]} 65. Bd5 {[%emt 0:00:22]} d3 {[%emt 0:00:06]} 66. Rxe5+ {[%emt 0:00:01]} Kh6 {[%emt 0:00:01]} 67. Re6+ {[%emt 0:00:01]} Kg5 {[%emt 0:00:02]} 68. Rd6 {[%emt 0:00:14]} d2 {[%emt 0:00:29]} 69. Bb3 {[%emt 0:00:13]} Ra3 {[%emt 0:00:09]} 70. Bd1 Re3 71. Bf3 {[%emt 0:00:23] Weighted Error Value: White=0.37/Black=0.36} 1-0

[Event "1st Anfield Cup 2022"]
[Site "Kyiv"]
[Date "2022.09.25"]
[Round "9.6"]
[White "Golichenko, Ilija"]
[Black "Petrov, Vladimir Sergeev"]
[Result "1-0"]
[ECO "A90"]
[WhiteElo "2413"]
[BlackElo "2349"]
[Annotator "TA"]
[PlyCount "41"]
[EventDate "2022.09.20"]
[EventType "swiss"]
[EventCountry "UKR"]
[SourceTitle "playchess.com"]
[Source "ChessBase"]
[SourceQuality "1"]
[TimeControl "900+10"]

{[%evp 9,41,27,50,52,50,16,9,0,28,12,22,39,83,60,72,62,143,133,135,120,116,118,230,242,737,738,1139,1099,1085,1080,1055,1053,973,941]} 1. d4 {[%emt 0:00:02]} e6 {[%emt 0:00:01]} 2. c4 {[%emt 0:00:02]} f5 {[%emt 0:00:02]} 3. g3 {[%emt 0:00:01]} Nf6 {[%emt 0:00:02]} 4. Bg2 {[%emt 0:00:01]} c6 {[%emt 0:00:01]} 5. Nh3 {[%emt 0:00:08]} Be7 {[%emt 0:00:28]} 6. O-O {[%emt 0:00:03] A91: Classical Dutch: Early Deviations.} O-O {[%emt 0:00:02]} 7. Nd2 {[%emt 0:00:10]} d6 {[%emt 0:00:04]} 8. e4 {[%emt 0:00:18] The position is equal.} fxe4 {[%emt 0:00:21]} 9. Nxe4 {[%emt 0:00:02]} Nxe4 {[%emt 0:00:05]} 10. Bxe4 {[%emt 0:00:01]} d5 {[%emt 0:00:02]} 11. Bc2 $36 {[%emt 0:03:17][%mdl 2048] [#] And now Qh5 would win. White is more active.} Nd7 $146 {[%emt 0:02:29]} ({Weaker is} 11... e5 {[#]} 12. dxe5 $1 Qe8 13. Ng5 (13. Qd3 Bf5 $15) 13... Bxg5 14. Bxg5 $18) ({Predecessor:} 11... Bf6 12. Nf4 g6 13. Bb3 Na6 14. Re1 Nc7 15. Be3 dxc4 16. Bxc4 Nd5 17. Qb3 Qb6 {0-1 (42) Kadimova,I (2328)-Pytel,K (2385) Belgium 2006}) 12. Qd3 {[%emt 0:00:47]} Nf6 {[%emt 0:00:20]} ({Black should try} 12... g6 $1 $14) 13. Ng5 $16 {[%emt 0:00:08][%cal Rg5h7] White is more active.} dxc4 {[%emt 0:01:50]} 14. Qxc4 {[%emt 0:01:47]} Qd5 {[%emt 0:01:28]} 15. Qd3 {[%emt 0:00:09][%cal Rg5h7]} Rd8 {[%emt 0:03:22]} (15... Qb5 $16) 16. Nxh7 $18 {[%emt 0:00:54] [#] Qg6 is the strong threat.} Qxd4 $2 {[%emt 0:00:01]} (16... Qf5) 17. Nxf6+ {[%emt 0:01:01] White is clearly winning.} Qxf6 {[%emt 0:00:31]} 18. Qh7+ {[%emt 0:00:04]} Kf8 {[%emt 0:00:21]} 19. Qh8+ {[%emt 0:00:19]} Kf7 {[%emt 0:00:01]} 20. Qh5+ {[%emt 0:00:01]} Kf8 {[%emt 0:00:57]} 21. Bg6 {[%emt 0:00:05] Weighted Error Value: White=0.06 (flawless) /Black=0.33} 1-0